[Event "Dalheimers Hus Rapid Open"]
[Site "Dalheimers Hus, Slottsskogsgatan 12, Gothenburg, Sweden"]
[Date "2024.04.14"]
[Round "6.11"]
[White "Aaberg, Anton"]
[Black "Sjoholm, Emil"]
[Result "1-0"]
[TimeControl "15 minutes + 5 seconds per move from move one."]
[WhiteTitle "IM"]
[WhiteFideId "1701991"]
[BlackFideId "1720449"]
[WhiteElo "2346"]
[BlackElo "2016"]

1. e4 {[%clk 00:15:08]} {[%emt 00:00:02]} e5 {[%clk 00:15:09]} {[%emt
00:00:02]} 2. Nf3 {[%clk 00:15:08]} {[%emt 00:00:05]} Nc6 {[%clk 00:15:12]}
{[%emt 00:00:02]} 3. d4 {[%clk 00:15:12]} {[%emt 00:00:01]} exd4 {[%clk
00:15:15]} {[%emt 00:00:03]} 4. Nxd4 {[%clk 00:15:15]} {[%emt 00:00:02]} Bc5
{[%clk 00:15:16]} {[%emt 00:00:03]} 5. Nb3 {[%clk 00:15:18]} {[%emt 00:00:01]}
Bb6 {[%clk 00:15:19]} {[%emt 00:00:03]} 6. Nc3 {[%clk 00:15:21]} {[%emt
00:00:02]} Nf6 {[%clk 00:14:23]} {[%emt 00:01:01]} 7. Qe2 {[%clk 00:14:32]}
{[%emt 00:00:54]} O-O {[%clk 00:13:55]} {[%emt 00:00:32]} 8. Be3 {[%clk
00:14:01]} {[%emt 00:00:36]} Re8 {[%clk 00:13:29]} {[%emt 00:00:32]} 9. f3
{[%clk 00:12:54]} {[%emt 00:01:12]} d5 {[%clk 00:12:11]} {[%emt 00:01:24]} 10.
O-O-O {[%clk 00:11:47]} {[%emt 00:01:11]} Qe7 {[%clk 00:12:09]} {[%emt
00:00:07]} 11. Bg5 {[%clk 00:11:10]} {[%emt 00:00:42]} dxe4 {[%clk 00:11:45]}
{[%emt 00:00:31]} 12. Nd5 {[%clk 00:10:29]} {[%emt 00:00:45]} Qe5 {[%clk
00:11:08]} {[%emt 00:00:42]} 13. Bxf6 {[%clk 00:10:02]} {[%emt 00:00:31]} gxf6
{[%clk 00:10:04]} {[%emt 00:01:08]} 14. fxe4 {[%clk 00:09:30]} {[%emt
00:00:39]} f5 {[%clk 00:09:02]} {[%emt 00:01:07]} 15. Nd2 {[%clk 00:07:13]}
{[%emt 00:02:21]} Nd4 {[%clk 00:08:14]} {[%emt 00:00:54]} 16. Qd3 {[%clk
00:06:57]} {[%emt 00:00:20]} fxe4 {[%clk 00:07:17]} {[%emt 00:01:03]} 17. Qxe4
{[%clk 00:06:32]} {[%emt 00:00:30]} Bf5 {[%clk 00:03:50]} {[%emt 00:03:33]} 18.
Qxe5 {[%clk 00:06:33]} {[%emt 00:00:04]} Rxe5 {[%clk 00:03:53]} {[%emt
00:00:01]} 19. Nxb6 {[%clk 00:06:20]} {[%emt 00:00:18]} axb6 {[%clk 00:03:57]}
20. Nc4 {[%clk 00:06:24]} {[%emt 00:00:02]} Ne2+ {[%clk 00:03:38]} {[%emt
00:00:24]} 21. Kb1 {[%clk 00:05:59]} {[%emt 00:00:29]} Re4 {[%clk 00:03:19]}
{[%emt 00:00:24]} 22. Bxe2 {[%clk 00:02:39]} {[%emt 00:03:25]} Rxe2 {[%clk
00:03:19]} {[%emt 00:00:06]} 23. Rd2 {[%clk 00:02:19]} {[%emt 00:00:24]} Rae8
{[%clk 00:03:14]} {[%emt 00:00:09]} 24. Kc1 {[%clk 00:02:10]} {[%emt 00:00:14]}
Re1+ {[%clk 00:02:51]} {[%emt 00:00:28]} 25. Rxe1 {[%clk 00:02:01]} {[%emt
00:00:14]} Rxe1+ {[%clk 00:02:55]} {[%emt 00:00:01]} 26. Rd1 {[%clk 00:02:05]}
{[%emt 00:00:02]} Re2 {[%clk 00:02:54]} {[%emt 00:00:06]} 27. Rd2 {[%clk
00:02:09]} Re1+ {[%clk 00:00:55]} {[%emt 00:02:05]} 28. Rd1 {[%clk 00:02:11]}
{[%emt 00:00:02]} Rxd1+ {[%clk 00:00:47]} {[%emt 00:00:14]} 29. Kxd1 {[%clk
00:02:15]} {[%emt 00:00:01]} Be4 {[%clk 00:00:52]} 30. g3 {[%clk 00:02:16]}
{[%emt 00:00:03]} f6 {[%clk 00:00:40]} {[%emt 00:00:17]} 31. Kd2 {[%clk
00:02:18]} {[%emt 00:00:02]} Kf7 {[%clk 00:00:42]} {[%emt 00:00:02]} 32. c3
{[%clk 00:01:45]} {[%emt 00:00:38]} Bd5 {[%clk 00:00:19]} {[%emt 00:00:30]} 33.
Kd3 {[%clk 00:01:48]} {[%emt 00:00:02]} b5 {[%clk 00:00:22]} {[%emt 00:00:02]}
34. Nd2 {[%clk 00:01:47]} {[%emt 00:00:06]} Bxa2 {[%clk 00:00:14]} {[%emt
00:00:13]} 35. b3 {[%clk 00:01:49]} {[%emt 00:00:03]} c5 {[%clk 00:00:18]} 36.
Ke4 {[%clk 00:01:38]} {[%emt 00:00:16]} Ke6 {[%clk 00:00:21]} {[%emt 00:00:03]}
37. g4 {[%clk 00:01:41]} {[%emt 00:00:01]} c4 {[%clk 00:00:22]} {[%emt
00:00:05]} 38. b4 {[%clk 00:01:41]} {[%emt 00:00:04]} Bb3 {[%clk 00:00:25]}
{[%emt 00:00:02]} 39. Nf3 {[%clk 00:01:34]} {[%emt 00:00:12]} Bc2+ {[%clk
00:00:23]} {[%emt 00:00:07]} 40. Kf4 {[%clk 00:01:38]} Kd5 {[%clk 00:00:07]}
{[%emt 00:00:22]} 41. h4 {[%clk 00:01:22]} {[%emt 00:00:21]} Be4 {[%clk
00:00:09]} {[%emt 00:00:04]} 42. Nd4 {[%clk 00:01:09]} {[%emt 00:00:18]} Bd3
{[%clk 00:00:12]} {[%emt 00:00:01]} 43. h5 {[%clk 00:00:54]} {[%emt 00:00:19]}
h6 {[%clk 00:00:14]} {[%emt 00:00:04]} 44. Nf5 {[%clk 00:00:55]} {[%emt
00:00:04]} Ke6 {[%clk 00:00:08]} {[%emt 00:00:12]} 45. Nxh6 {[%clk 00:00:58]}
{[%emt 00:00:01]} Be2 {[%clk 00:00:12]} {[%emt 00:00:02]} 46. Nf5 {[%clk
00:01:01]} Kf7 {[%clk 00:00:16]} {[%emt 00:00:01]} 47. Nd4 {[%clk 00:01:04]}
{[%emt 00:00:02]} Bd3 {[%clk 00:00:20]} 48. Nxb5 {[%clk 00:01:08]} {[%emt
00:00:02]} Kg7 {[%clk 00:00:24]} 49. Nd6 {[%clk 00:01:12]} b6 {[%clk 00:00:29]}
50. Nc8 {[%clk 00:01:15]} {[%emt 00:00:02]} b5 {[%clk 00:00:33]} 51. Nd6 {[%clk
00:01:19]} 1-0

[Event "Dalheimers Hus Rapid Open"]
[Site "Dalheimers Hus, Slottsskogsgatan 12, Gothenburg, Sweden"]
[Date "2024.04.14"]
[Round "7.1"]
[White "Johansson, Linus"]
[Black "Olsson, William"]
[Result "1-0"]
[TimeControl "15 minutes + 5 seconds per move from move one."]
[WhiteTitle "IM"]
[BlackTitle "FM"]
[WhiteFideId "1711113"]
[BlackFideId "1741721"]
[WhiteElo "2427"]
[BlackElo "2159"]

1. d4 {[%clk 00:15:08]} {[%emt 00:00:02]} d5 {[%clk 00:15:09]} {[%emt
00:00:01]} 2. c4 {[%clk 00:15:11]} {[%emt 00:00:02]} c6 {[%clk 00:15:13]} 3.
Nc3 {[%clk 00:15:15]} {[%emt 00:00:01]} Nf6 {[%clk 00:15:16]} {[%emt 00:00:02]}
4. e3 {[%clk 00:15:19]} {[%emt 00:00:02]} e6 {[%clk 00:15:07]} {[%emt
00:00:13]} 5. Nf3 {[%clk 00:15:22]} {[%emt 00:00:02]} Nbd7 {[%clk 00:15:10]}
{[%emt 00:00:02]} 6. Bd3 {[%clk 00:15:26]} dxc4 {[%clk 00:15:14]} {[%emt
00:00:02]} 7. Bxc4 {[%clk 00:15:30]} b5 {[%clk 00:15:17]} {[%emt 00:00:02]} 8.
Bd3 {[%clk 00:15:34]} Bb7 {[%clk 00:15:21]} {[%emt 00:00:01]} 9. e4 {[%clk
00:15:30]} {[%emt 00:00:10]} b4 {[%clk 00:15:21]} {[%emt 00:00:04]} 10. Na4
{[%clk 00:15:28]} {[%emt 00:00:07]} c5 {[%clk 00:15:23]} {[%emt 00:00:03]} 11.
e5 {[%clk 00:15:28]} {[%emt 00:00:05]} Nd5 {[%clk 00:15:26]} {[%emt 00:00:01]}
12. O-O {[%clk 00:15:28]} {[%emt 00:00:05]} cxd4 {[%clk 00:15:17]} {[%emt
00:00:15]} 13. Nxd4 {[%clk 00:15:30]} {[%emt 00:00:03]} Nxe5 {[%clk 00:14:49]}
{[%emt 00:00:33]} 14. Bb5+ {[%clk 00:15:28]} {[%emt 00:00:07]} Nd7 {[%clk
00:14:53]} 15. Re1 {[%clk 00:14:59]} {[%emt 00:00:34]} Be7 {[%clk 00:13:18]}
{[%emt 00:01:40]} 16. Nc6 {[%clk 00:14:29]} {[%emt 00:00:35]} Bxc6 {[%clk
00:11:32]} {[%emt 00:01:51]} 17. Bxc6 {[%clk 00:14:33]} Rc8 {[%clk 00:11:29]}
{[%emt 00:00:08]} 18. Bb7 {[%clk 00:14:37]} {[%emt 00:00:02]} Rc7 {[%clk
00:09:43]} {[%emt 00:01:50]} 19. Bxd5 {[%clk 00:14:40]} {[%emt 00:00:02]} exd5
{[%clk 00:09:47]} {[%emt 00:00:01]} 20. Bf4 {[%clk 00:14:41]} {[%emt 00:00:04]}
Rc4 {[%clk 00:09:48]} {[%emt 00:00:04]} 21. Bd6 {[%clk 00:13:32]} {[%emt
00:01:13]} Re4 {[%clk 00:09:31]} {[%emt 00:00:23]} 22. Qxd5 {[%clk 00:12:59]}
{[%emt 00:00:39]} Nf6 {[%clk 00:09:34]} {[%emt 00:00:01]} 23. Qc6+ {[%clk
00:12:41]} {[%emt 00:00:23]} Kf8 {[%clk 00:08:52]} {[%emt 00:00:47]} 24. Rxe4
{[%clk 00:11:50]} {[%emt 00:00:56]} Bxd6 {[%clk 00:08:28]} {[%emt 00:00:29]} 25.
Ree1 {[%clk 00:11:21]} {[%emt 00:00:34]} Qb8 {[%clk 00:05:41]} {[%emt
00:02:52]} 26. g3 {[%clk 00:11:04]} {[%emt 00:00:23]} Kg8 {[%clk 00:05:06]}
{[%emt 00:00:39]} 27. Rad1 {[%clk 00:10:20]} {[%emt 00:00:49]} Bf8 {[%clk
00:05:10]} {[%emt 00:00:01]} 28. Nc5 {[%clk 00:10:21]} {[%emt 00:00:04]} h5
{[%clk 00:05:05]} {[%emt 00:00:09]} 29. Nd7 {[%clk 00:10:19]} {[%emt 00:00:08]}
Nxd7 {[%clk 00:05:02]} {[%emt 00:00:08]} 30. Qxd7 {[%clk 00:10:22]} {[%emt
00:00:02]} Rh6 {[%emt 00:00:33]} 31. Re8 {[%clk 00:10:05]} Qb6 {[%clk
00:05:00]} {[%emt 00:00:02]} 32. Qc8 {[%clk 00:09:49]} {[%emt 00:00:20]} Rf6
{[%clk 00:04:54]} {[%emt 00:00:11]} 33. Rxf8+ {[%clk 00:09:51]} {[%emt
00:00:04]} Kh7 {[%clk 00:04:57]} 34. Rh8+ {[%clk 00:09:51]} {[%emt 00:00:05]}
Kg6 {[%clk 00:05:01]} 35. Qc2+ {[%clk 00:09:54]} {[%emt 00:00:02]} 1-0

[Event "Dalheimers Hus Rapid Open"]
[Site "Dalheimers Hus, Slottsskogsgatan 12, Gothenburg, Sweden"]
[Date "2024.04.14"]
[Round "7.2"]
[White "Svensson, Bengt"]
[Black "Seo, Jung Min"]
[Result "0-1"]
[TimeControl "15 minutes + 5 seconds per move from move one."]
[WhiteTitle "IM"]
[BlackTitle "IM"]
[WhiteFideId "1700200"]
[BlackFideId "1734687"]
[WhiteElo "2281"]
[BlackElo "2450"]

1. e4 {[%clk 00:15:08]} {[%emt 00:00:01]} c5 {[%clk 00:15:10]} {[%emt
00:00:01]} 2. Nf3 {[%clk 00:15:10]} {[%emt 00:00:03]} d6 {[%clk 00:15:14]} 3.
d4 {[%clk 00:15:13]} {[%emt 00:00:03]} cxd4 {[%clk 00:15:19]} {[%emt 00:00:01]}
4. Nxd4 {[%clk 00:15:16]} Nf6 {[%clk 00:15:23]} 5. Nc3 {[%clk 00:15:20]} {[%emt
00:00:02]} a6 {[%clk 00:15:28]} 6. Bg5 {[%clk 00:15:14]} {[%emt 00:00:10]} Nbd7
{[%clk 00:15:30]} {[%emt 00:00:03]} 7. Bc4 {[%clk 00:14:35]} {[%emt 00:00:44]}
Qb6 {[%clk 00:15:29]} {[%emt 00:00:06]} 8. Bb3 {[%clk 00:14:25]} {[%emt
00:00:15]} e6 {[%clk 00:15:31]} {[%emt 00:00:04]} 9. Qd2 {[%clk 00:14:05]}
{[%emt 00:00:24]} Be7 {[%clk 00:15:33]} {[%emt 00:00:03]} 10. O-O-O {[%clk
00:13:42]} {[%emt 00:00:28]} Nc5 {[%clk 00:15:37]} 11. Rhe1 {[%clk 00:13:06]}
{[%emt 00:00:41]} O-O {[%clk 00:14:46]} {[%emt 00:00:56]} 12. f4 {[%clk
00:11:58]} {[%emt 00:01:13]} h6 {[%clk 00:14:50]} {[%emt 00:00:02]} 13. Bxf6
{[%clk 00:11:28]} {[%emt 00:00:35]} Bxf6 {[%clk 00:14:53]} 14. Nf3 {[%clk
00:10:00]} {[%emt 00:01:33]} Rd8 {[%clk 00:12:12]} {[%emt 00:02:46]} 15. g4
{[%clk 00:09:26]} {[%emt 00:00:40]} Bd7 {[%clk 00:11:59]} {[%emt 00:00:18]} 16.
g5 {[%clk 00:07:45]} {[%emt 00:01:46]} hxg5 {[%clk 00:12:02]} {[%emt 00:00:02]}
17. fxg5 {[%clk 00:07:48]} {[%emt 00:00:02]} Bxc3 {[%clk 00:11:59]} {[%emt
00:00:08]} 18. Qxc3 {[%clk 00:07:41]} {[%emt 00:00:12]} Rac8 {[%clk 00:12:03]}
{[%emt 00:00:02]} 19. Qe3 {[%clk 00:05:41]} {[%emt 00:02:05]} Bc6 {[%clk
00:11:50]} {[%emt 00:00:18]} 20. Nd2 {[%clk 00:04:06]} {[%emt 00:01:40]} Nxb3+
{[%clk 00:07:59]} {[%emt 00:03:56]} 21. axb3 {[%clk 00:04:02]} {[%emt
00:00:09]} Qxe3 {[%clk 00:08:03]} 22. Rxe3 {[%clk 00:04:05]} {[%emt 00:00:01]}
Kf8 {[%clk 00:07:43]} {[%emt 00:00:25]} 23. Nc4 {[%clk 00:03:49]} {[%emt
00:00:21]} Ke7 {[%clk 00:07:36]} {[%emt 00:00:13]} 24. e5 {[%clk 00:03:13]}
{[%emt 00:00:41]} dxe5 {[%clk 00:07:34]} {[%emt 00:00:07]} 25. Rxd8 {[%clk
00:03:11]} {[%emt 00:00:06]} Rxd8 {[%clk 00:07:38]} {[%emt 00:00:01]} 26. Nxe5
{[%clk 00:03:11]} {[%emt 00:00:06]} Be8 {[%clk 00:06:58]} {[%emt 00:00:44]} 27.
h4 {[%clk 00:01:56]} {[%emt 00:01:20]} f6 {[%clk 00:07:01]} {[%emt 00:00:01]}
28. Nd3 {[%clk 00:01:34]} {[%emt 00:00:29]} e5 {[%clk 00:06:48]} {[%emt
00:00:18]} 29. gxf6+ {[%clk 00:01:18]} {[%emt 00:00:21]} gxf6 {[%clk 00:06:52]}
30. Rg3 {[%clk 00:01:18]} {[%emt 00:00:06]} Bc6 {[%clk 00:06:36]} {[%emt
00:00:20]} 31. Rg7+ {[%clk 00:01:06]} {[%emt 00:00:17]} Kd6 {[%clk 00:06:22]}
{[%emt 00:00:18]} 32. Rf7 {[%clk 00:00:40]} {[%emt 00:00:32]} Ke6 {[%clk
00:06:27]} 33. Rh7 {[%clk 00:00:40]} {[%emt 00:00:06]} Bf3 {[%clk 00:05:31]}
{[%emt 00:01:00]} 34. Nc5+ {[%clk 00:00:10]} {[%emt 00:00:36]} Kf5 {[%clk
00:05:33]} {[%emt 00:00:01]} 35. c3 {[%clk 00:00:09]} {[%emt 00:00:08]} e4
{[%clk 00:04:50]} {[%emt 00:00:48]} 36. Re7 {[%clk 00:00:13]} Rd1+ {[%clk
00:04:35]} {[%emt 00:00:19]} 37. Kc2 {[%clk 00:00:17]} {[%emt 00:00:02]} Rh1
{[%clk 00:04:38]} 38. Kd2 {[%clk 00:00:10]} {[%emt 00:00:13]} Kf4 {[%clk
00:04:15]} {[%emt 00:00:27]} 39. Ne6+ {[%clk 00:00:13]} {[%emt 00:00:03]} Kg3
{[%clk 00:04:19]} 40. Ke3 {[%clk 00:00:14]} {[%emt 00:00:05]} Re1+ {[%clk
00:04:05]} {[%emt 00:00:18]} 41. Kd4 {[%clk 00:00:18]} {[%emt 00:00:02]} b6
{[%clk 00:03:31]} {[%emt 00:00:39]} 42. b4 {[%clk 00:00:16]} {[%emt 00:00:06]}
Rd1+ {[%clk 00:02:52]} {[%emt 00:00:44]} 43. Kc4 {[%clk 00:00:20]} {[%emt
00:00:02]} Kxh4 {[%clk 00:02:54]} {[%emt 00:00:04]} 44. Nd4 {[%clk 00:00:13]}
{[%emt 00:00:11]} Kg5 {[%clk 00:01:32]} {[%emt 00:01:28]} 45. Rg7+ {[%clk
00:00:15]} {[%emt 00:00:03]} Kh5 {[%clk 00:01:25]} {[%emt 00:00:10]} 46. Nxf3
{[%clk 00:00:10]} {[%emt 00:00:12]} exf3 {[%clk 00:01:28]} {[%emt 00:00:02]} 47.
Kd3 {[%clk 00:00:00]} {[%emt 00:00:09]} 0-1

[Event "Dalheimers Hus Rapid Open"]
[Site "Dalheimers Hus, Slottsskogsgatan 12, Gothenburg, Sweden"]
[Date "2024.04.14"]
[Round "7.3"]
[White "Wellevit, Tomas"]
[Black "Hellers, Ferdinand"]
[Result "0-1"]
[TimeControl "15 minutes + 5 seconds per move from move one."]
[BlackTitle "GM"]
[WhiteFideId "1731963"]
[BlackFideId "1700022"]
[WhiteElo "1978"]
[BlackElo "2410"]

1. e4 {[%clk 00:15:08]} {[%emt 00:00:02]} Nf6 {[%clk 00:14:52]} {[%emt
00:00:18]} 2. Nc3 {[%clk 00:14:36]} {[%emt 00:00:38]} e5 {[%clk 00:14:06]}
{[%emt 00:00:51]} 3. Nf3 {[%clk 00:14:36]} {[%emt 00:00:05]} Nc6 {[%emt
00:00:11]} 4. Be2 {[%clk 00:14:00]} {[%emt 00:00:39]} Bc5 {[%clk 00:13:47]}
{[%emt 00:00:19]} 5. O-O {[%clk 00:13:42]} {[%emt 00:00:23]} d6 {[%clk
00:13:38]} {[%emt 00:00:15]} 6. d3 {[%clk 00:13:33]} {[%emt 00:00:15]} a6
{[%clk 00:13:33]} {[%emt 00:00:10]} 7. Bg5 {[%clk 00:12:39]} {[%emt 00:00:57]}
h6 {[%clk 00:13:32]} {[%emt 00:00:06]} 8. Be3 {[%clk 00:12:16]} {[%emt
00:00:30]} O-O {[%clk 00:13:12]} {[%emt 00:00:24]} 9. Qd2 {[%clk 00:12:17]}
{[%emt 00:00:04]} Re8 {[%clk 00:13:05]} {[%emt 00:00:11]} 10. h3 {[%clk
00:11:53]} {[%emt 00:00:30]} b5 {[%clk 00:12:39]} {[%emt 00:00:30]} 11. Bxc5
{[%clk 00:11:52]} {[%emt 00:00:07]} dxc5 {[%clk 00:12:41]} {[%emt 00:00:02]} 12.
Rad1 {[%clk 00:11:50]} {[%emt 00:00:08]} Bb7 {[%clk 00:11:48]} {[%emt
00:00:58]} 13. Ne1 {[%clk 00:11:39]} {[%emt 00:00:15]} Nd4 {[%clk 00:11:35]}
{[%emt 00:00:18]} 14. f4 {[%clk 00:11:28]} {[%emt 00:00:17]} b4 {[%clk
00:11:11]} {[%emt 00:00:29]} 15. Na4 {[%clk 00:11:17]} {[%emt 00:00:17]} Qd6
{[%clk 00:10:46]} {[%emt 00:00:29]} 16. f5 {[%clk 00:10:35]} {[%emt 00:00:48]}
Rad8 {[%clk 00:10:30]} {[%emt 00:00:20]} 17. b3 {[%clk 00:10:28]} {[%emt
00:00:13]} Nxe4 {[%clk 00:10:22]} {[%emt 00:00:12]} 18. Qe3 {[%clk 00:09:05]}
{[%emt 00:01:28]} Ng3 {[%clk 00:10:21]} {[%emt 00:00:05]} 19. Rd2 {[%clk
00:06:31]} {[%emt 00:02:40]} e4 {[%clk 00:09:37]} {[%emt 00:00:48]} 20. Bg4
{[%clk 00:04:55]} {[%emt 00:01:42]} Nxf1 {[%clk 00:08:36]} {[%emt 00:01:06]} 21.
Kxf1 {[%clk 00:04:56]} {[%emt 00:00:04]} exd3 {[%clk 00:08:23]} {[%emt
00:00:18]} 22. Qxd3 {[%clk 00:05:00]} {[%emt 00:00:01]} Qe5 {[%clk 00:07:47]}
{[%emt 00:00:40]} 0-1

[Event "Dalheimers Hus Rapid Open"]
[Site "Dalheimers Hus, Slottsskogsgatan 12, Gothenburg, Sweden"]
[Date "2024.04.14"]
[Round "7.4"]
[White "Sigurgeirson, Brjann"]
[Black "Mohammadi, Amir"]
[Result "1-0"]
[TimeControl "15 minutes + 5 seconds per move from move one."]
[WhiteFideId "1712497"]
[BlackFideId "1705890"]
[WhiteElo "2103"]
[BlackElo "2275"]

1. e4 {[%clk 00:15:09]} c5 {[%clk 00:15:07]} {[%emt 00:00:04]} 2. Nf3 {[%clk
00:15:13]} {[%emt 00:00:01]} e6 {[%clk 00:15:01]} {[%emt 00:00:10]} 3. c3
{[%clk 00:15:16]} {[%emt 00:00:02]} b6 {[%clk 00:13:52]} {[%emt 00:01:15]} 4.
d4 {[%clk 00:15:11]} {[%emt 00:00:10]} Bb7 {[%clk 00:13:55]} {[%emt 00:00:02]}
5. Bd3 {[%clk 00:15:15]} {[%emt 00:00:01]} d6 {[%clk 00:13:52]} {[%emt
00:00:09]} 6. O-O {[%clk 00:15:12]} {[%emt 00:00:07]} Be7 {[%clk 00:13:51]}
{[%emt 00:00:06]} 7. Bf4 {[%clk 00:14:30]} {[%emt 00:00:47]} Nf6 {[%clk
00:13:31]} {[%emt 00:00:25]} 8. Nbd2 {[%clk 00:12:59]} {[%emt 00:01:36]} Nbd7
{[%clk 00:12:33]} {[%emt 00:01:04]} 9. Qe2 {[%clk 00:12:11]} {[%emt 00:00:52]}
O-O {[%clk 00:10:10]} {[%emt 00:02:28]} 10. h3 {[%clk 00:10:59]} {[%emt
00:01:18]} Re8 {[%clk 00:09:42]} {[%emt 00:00:32]} 11. Rfd1 {[%clk 00:08:29]}
{[%emt 00:02:35]} Qc7 {[%clk 00:08:43]} {[%emt 00:01:05]} 12. e5 {[%clk
00:07:06]} {[%emt 00:01:30]} Nd5 {[%clk 00:08:06]} {[%emt 00:00:39]} 13. Bg3
{[%clk 00:06:24]} {[%emt 00:00:48]} dxe5 {[%clk 00:06:02]} {[%emt 00:02:09]} 14.
dxe5 {[%clk 00:06:08]} {[%emt 00:00:22]} Nf8 {[%clk 00:05:44]} {[%emt
00:00:22]} 15. Ne4 {[%clk 00:05:52]} {[%emt 00:00:20]} Ng6 {[%clk 00:05:05]}
{[%emt 00:00:45]} 16. Nd6 {[%clk 00:05:08]} {[%emt 00:00:49]} Bxd6 {[%clk
00:03:39]} {[%emt 00:01:31]} 17. exd6 {[%clk 00:05:10]} {[%emt 00:00:03]} Qd8
{[%clk 00:03:44]} 18. Bxg6 {[%clk 00:02:57]} {[%emt 00:02:18]} hxg6 {[%clk
00:03:47]} {[%emt 00:00:02]} 19. c4 {[%clk 00:02:31]} {[%emt 00:00:31]} Nb4
{[%clk 00:02:55]} {[%emt 00:00:57]} 20. Ne5 {[%clk 00:02:05]} {[%emt 00:00:31]}
Nc6 {[%clk 00:02:54]} {[%emt 00:00:06]} 21. Qf3 {[%clk 00:01:40]} {[%emt
00:00:30]} Nxe5 {[%clk 00:02:50]} {[%emt 00:00:10]} 22. Qxb7 {[%clk 00:01:44]}
Nxc4 {[%clk 00:02:44]} {[%emt 00:00:11]} 23. d7 {[%clk 00:01:34]} {[%emt
00:00:15]} Rf8 {[%clk 00:02:03]} {[%emt 00:00:46]} 24. Bc7 {[%clk 00:01:01]}
{[%emt 00:00:38]} Qe7 {[%clk 00:00:28]} {[%emt 00:01:40]} 25. Qa6 {[%clk
00:00:38]} {[%emt 00:00:28]} Na5 {[%clk 00:00:24]} {[%emt 00:00:08]} 26. d8=Q
{[%emt 00:00:07]} Raxd8 {[%clk 00:00:28]} 27. Bxd8 {[%clk 00:00:42]} Rxd8
{[%clk 00:00:32]} 28. Rxd8+ {[%clk 00:00:44]} {[%emt 00:00:03]} Qxd8 {[%clk
00:00:36]} 29. Qxa7 {[%clk 00:00:48]} Nc4 {[%clk 00:00:38]} {[%emt 00:00:03]}
30. Qa4 {[%clk 00:00:35]} {[%emt 00:00:18]} Nxb2 {[%clk 00:00:29]} {[%emt
00:00:14]} 31. Qb3 {[%clk 00:00:32]} {[%emt 00:00:08]} Qd4 {[%clk 00:00:28]}
{[%emt 00:00:06]} 32. Qxb6 {[%clk 00:00:35]} {[%emt 00:00:03]} Nc4 {[%clk
00:00:32]} 33. Qb8+ {[%clk 00:00:36]} {[%emt 00:00:04]} Kh7 {[%clk 00:00:36]}
34. Rc1 {[%clk 00:00:21]} {[%emt 00:00:19]} Ne5 {[%clk 00:00:32]} {[%emt
00:00:09]} 35. Qb1 {[%clk 00:00:10]} {[%emt 00:00:17]} c4 {[%clk 00:00:24]}
{[%emt 00:00:13]} 36. a4 {[%clk 00:00:11]} {[%emt 00:00:04]} Nd3 {[%clk
00:00:14]} {[%emt 00:00:14]} 37. Rf1 {[%clk 00:00:12]} {[%emt 00:00:04]} c3
{[%clk 00:00:17]} {[%emt 00:00:03]} 38. Qc2 {[%clk 00:00:15]} {[%emt 00:00:02]}
Nb4 {[%clk 00:00:21]} {[%emt 00:00:02]} 39. Qb3 {[%clk 00:00:09]} {[%emt
00:00:11]} c2 {[%clk 00:00:24]} {[%emt 00:00:01]} 40. a5 {[%clk 00:00:12]}
{[%emt 00:00:02]} Qd1 {[%clk 00:00:28]} 41. Rxd1 {[%clk 00:00:17]} {[%emt
00:00:01]} cxd1=Q+ 42. Qxd1 {[%clk 00:00:17]} 1-0